bitfinex-derivatives/quotes_SOLF0:USTF0_20250501
["timestamp","ask_amount","ask_price","bid_price","bid_amount"]
[1746109094410,26.96,152.17,152.13,156.5642979]
[1746109094922,6.5709,152.15,152.13,156.5642979]
[1746109095121,26.96,152.17,152.13,156.5642979]
[1746109095619,6.5712,152.14,152.13,156.5642979]
[1746109095819,33.5312,152.14,152.13,156.5642979]
[1746109096713,6.5709,152.15,152.13,156.5642979]
[1746109096920,33.5309,152.15,152.13,156.5642979]
[1746109097518,6.5712,152.14,152.13,156.5642979]
[1746109098016,6.5718,152.13,152.02,31.34546073]
[1746109098918,6.5718,152.13,152.09,6.5731]
[1746109099319,6.5718,152.13,152.02,31.34546073]
[1746109099921,6.5718,152.13,152.09,6.5731]
[1746109100220,26.96,152.15,152.02,31.34546073]
[1746109101522,26.96,152.15,151.99,31.34546073]
[1746109101823,26.96,152.15,152.01,1.14432278]
[1746109102021,6.5724,152.12,152.01,1.14432278]
[1746109102215,26.96,152.15,152.01,1.14432278]
[1746109102522,6.5722,152.12,152.01,1.14432278]
[1746109102823,26.96,152.15,152.01,1.14432278]
[1746109103119,6.5728,152.11,152.07,6.574]
[1746109103324,26.98,152.11,152.01,1.14432278]
[1746109103716,6.5738,152.09,152.01,1.14432278]
[1746109104017,26.98,152.11,152.01,1.14432278]
[1746109104324,26.98,152.1,152.02,6.5763]
[1746109104530,26.98,152.1,151.96,26.98]
[1746109104824,6.5746,152.07,151.96,26.98]
[1746109105021,26.98,152.06,151.96,26.98]
[1746109105421,6.5752,152.05,152.01,6.5765]
[1746109105925,26.98,152.06,151.96,26.98]
[1746109106425,6.5751,152.05,152.01,6.5765]
[1746109106730,26.98,152.06,151.96,26.98]
[1746109107025,6.5756,152.04,151.92,26.98]
[1746109107224,31.34546073,152.1,151.94,31.34546073]
[1746109107416,26.98,152.09,151.94,31.34546073]
[1746109107618,6.5749,152.06,152.02,6.5761]
[1746109107818,26.98,152.06,152.02,6.5761]
[1746109108122,26.98,152.06,151.96,26.98]
[1746109108626,6.5754,152.05,152.01,6.5765]
[1746109108929,26.98,152.06,152.01,6.5765]
[1746109109229,6.5754,152.05,152.01,6.5765]
[1746109110227,6.5754,152.05,152.02,6.5763]
[1746109110931,6.5754,152.05,152.01,6.5767]
[1746109111231,6.5755,152.04,151.96,26.98]
[1746109112130,6.5755,152.04,152.01,6.5767]
[1746109112927,6.5753,152.05,151.96,26.98]
[1746109113126,26.98,152.06,151.96,26.98]
[1746109113528,26.98,152.06,151.97,31.34546073]
[1746109114028,26.98,152.06,152.04,6.5752]
[1746109114233,26.98,152.06,151.96,26.98]
[1746109114537,6.576,152.03,152.0,6.5771]
[1746109114835,26.98,152.06,151.96,26.98]
[1746109115137,33.5549,152.06,151.96,26.98]
[1746109115634,26.98,152.06,151.96,26.98]
[1746109115836,6.5754,152.05,152.01,6.5767]
[1746109116034,26.98,152.06,152.01,6.5767]
[1746109116234,26.98,152.06,151.96,26.98]
[1746109116436,6.5763,152.03,151.96,26.98]
[1746109117032,6.5764,152.02,151.99,6.5775]
[1746109117436,26.98,152.06,151.96,26.98]
[1746109117840,26.96,152.08,151.96,46.2888727]
[1746109118132,26.96,152.07,151.96,26.98]
[1746109118533,6.5748,152.06,151.96,26.98]
[1746109119032,33.5345,152.07,152.03,6.5758]
[1746109119234,26.96,152.09,151.96,26.98]
[1746109119436,26.96,152.09,151.97,13.1566]
[1746109119738,26.96,152.09,151.96,26.98]
[1746109119934,26.96,152.09,151.98,13.1562]
[1746109120633,26.96,152.09,151.98,19.3088727]
[1746109120832,33.5322,152.12,151.98,19.3088727]
[1746109121229,33.5322,152.12,152.0,13.1545]
[1746109121533,33.5322,152.12,152.01,26.96]
[1746109121830,520.26,152.14,152.01,26.96]
[1746109122030,26.96,152.13,152.02,19.3088727]
[1746109122440,6.5721,152.12,152.03,13.1518]
[1746109122637,26.96,152.13,152.02,19.3088727]
[1746109122937,26.96,152.13,152.08,6.5737]
[1746109122938,6.5726,152.11,152.08,6.5737]
[1746109123333,6.5726,152.11,152.01,26.96]
[1746109124738,26.96,152.13,152.01,26.96]
[1746109125932,6.5732,152.1,152.01,26.96]
[1746109126133,26.96,152.09,152.01,26.96]
[1746109126434,26.96,152.09,152.08,6.5738]
[1746109126728,26.96,152.09,152.01,26.96]
[1746109126940,26.96,152.09,152.07,6.5739]
[1746109127140,26.96,152.09,152.01,26.96]
[1746109127541,26.96,152.09,152.08,6.5738]
[1746109127742,520.26,152.14,152.02,19.3088727]
[1746109128044,26.96,152.12,152.11,6.5725]
[1746109128345,26.96,152.12,152.05,19.3088727]
[1746109129141,26.96,152.12,152.09,6.5731]
[1746109129341,26.96,152.12,152.05,19.3088727]
[1746109130144,33.5321,152.12,152.05,19.3088727]
[1746109130340,26.96,152.12,152.05,19.3088727]
[1746109131445,26.96,152.12,152.1,6.5726]
[1746109133446,533.6763,152.22,152.08,19.3088727]
[1746109133639,26.96,152.21,152.08,19.3088727]
[1746109133946,6.5702,152.17,152.14,6.5711]
[1746109134243,26.96,152.17,152.08,19.3088727]
[1746109134544,33.5301,152.17,152.14,6.5709]
[1746109134847,26.96,152.17,152.08,19.3088727]
[1746109135747,26.96,152.17,152.14,6.571]
[1746109136148,26.96,152.17,152.08,19.3088727]
[1746109136344,13.1283,152.31,152.11,19.3088727]
[1746109136543,520.48,152.29,152.14,19.3088727]
[1746109136743,520.48,152.29,152.18,6.5692]
[1746109137144,520.48,152.29,152.14,19.3088727]
[1746109137443,520.48,152.29,152.13,26.96]
[1746109137642,6.5692,152.19,152.13,26.96]
[1746109138045,6.5692,152.19,152.16,6.5701]
[1746109138242,26.96,152.21,152.08,19.3088727]
[1746109138445,26.96,152.21,152.12,6.5717]
[1746109138646,6.5706,152.16,152.08,46.2688727]
[1746109139046,6.5706,152.16,152.13,6.5716]
[1746109139248,33.53,152.17,152.08,46.2688727]
[1746109139449,26.96,152.17,152.08,26.96]
[1746109139647,26.96,152.17,152.11,6.5722]
[1746109140247,26.96,152.17,152.05,46.2288727]
[1746109140940,6.571,152.15,152.05,46.2288727]
[1746109141349,26.96,152.17,152.05,19.3088727]
[1746109141842,26.96,152.17,152.08,19.3088727]
[1746109142147,26.96,152.17,152.08,46.2288727]
[1746109142345,520.42,152.2,152.17,6.5697]
[1746109142346,26.92,152.19,152.17,6.5697]
[1746109142648,26.92,152.19,152.11,19.3088727]
[1746109143041,26.92,152.19,152.18,6.5695]
[1746109143246,33.4878,152.22,152.12,26.92]
[1746109143547,26.92,152.22,152.14,19.3088727]
[1746109144241,26.92,152.23,152.14,19.3088727]
[1746109144850,26.92,152.25,152.17,19.3088727]
[1746109145050,26.92,152.25,152.24,6.5665]
[1746109145250,26.92,152.25,152.17,19.3088727]
[1746109145448,26.92,152.25,152.16,26.92]
[1746109145650,33.4867,152.25,152.22,6.5676]
[1746109145950,26.92,152.25,152.16,26.92]
[1746109146141,26.92,152.25,152.23,6.567]
[1746109146655,26.92,152.25,152.22,6.5676]
[1746109147254,26.92,152.25,152.16,26.92]
[1746109147854,6.5682,152.21,152.17,6.5697]
[1746109148051,26.92,152.25,152.13,26.92]
[1746109148457,6.5686,152.2,152.13,26.92]
[1746109148645,26.92,152.21,152.13,26.92]
[1746109148848,32.4385727,152.29,152.15,6.5705]
[1746109148849,6.5697,152.18,152.15,6.5705]
[1746109149048,26.92,152.2,152.1,26.92]
[1746109149558,6.5702,152.17,152.13,6.5714]
[1746109150056,6.5702,152.17,152.1,26.92]
[1746109150855,6.5702,152.17,152.13,6.5712]
[1746109151152,26.92,152.2,152.13,6.5716]
[1746109151855,26.92,152.2,152.12,6.5719]
[1746109152253,26.92,152.2,152.07,26.92]
[1746109152452,46.2288727,152.2,152.11,6.5723]
[1746109152655,26.92,152.2,152.07,26.92]
[1746109152958,6.5708,152.15,152.12,6.5718]
[1746109153256,33.4908,152.15,152.12,6.5718]
[1746109153559,6.5712,152.14,152.11,6.5723]
[1746109153754,26.92,152.15,152.07,26.92]
[1746109154062,26.92,152.15,152.12,6.5718]
[1746109154253,26.92,152.15,152.07,26.92]
[1746109155354,6.5688,152.2,152.08,19.3088727]
[1746109155560,547.2,152.21,152.11,19.3088727]
[1746109155753,547.2,152.21,152.11,46.2288727]
[1746109155949,26.92,152.24,152.14,19.3088727]
[1746109156264,26.92,152.25,152.15,26.92]
[1746109156455,26.92,152.25,152.17,6.5697]
[1746109156655,26.92,152.25,152.12,26.92]
[1746109157161,26.92,152.25,152.17,6.5698]
[1746109157751,26.92,152.25,152.18,6.5693]
[1746109158355,6.5687,152.2,152.18,6.5693]
[1746109158551,6.5687,152.2,152.17,6.5697]
[1746109159358,6.5691,152.19,152.15,6.5704]
[1746109159554,26.92,152.21,152.09,547.24]
[1746109160258,26.92,152.21,152.11,19.3088727]
[1746109160457,26.92,152.21,152.19,6.5687]
[1746109161159,26.92,152.21,152.11,19.3088727]
[1746109161668,6.5686,152.2,152.11,19.3088727]
[1746109162267,6.5686,152.2,152.17,6.5697]
[1746109162469,26.92,152.21,152.11,19.3088727]
[1746109162870,26.92,152.21,152.19,6.5689]
[1746109163374,26.92,152.21,152.18,6.5693]
[1746109163575,26.92,152.21,152.13,26.92]
[1746109164178,33.4883,152.21,152.13,26.92]
[1746109164577,33.4883,152.21,152.18,6.5693]
[1746109165278,6.5686,152.2,152.17,6.5697]
[1746109165472,26.92,152.21,152.13,26.92]
[1746109165673,26.92,152.21,152.1,26.92]
[1746109165873,6.5693,152.19,152.16,6.5703]
[1746109166368,26.92,152.21,152.14,6.5711]
[1746109166574,26.92,152.21,152.07,40.0679]
[1746109166775,26.92,152.21,152.07,26.92]
[1746109166975,6.57,152.17,152.13,6.5715]
[1746109167174,26.92,152.16,152.13,6.5715]
[1746109167375,26.92,152.16,152.07,26.92]
[1746109167780,26.92,152.19,152.07,26.92]
[1746109167970,534.7639701,152.28,152.18,6.5694]
[1746109167971,6.5683,152.21,152.18,6.5694]
[1746109168279,26.92,152.2,152.11,26.92]
[1746109169282,26.92,152.2,152.17,6.5697]
[1746109169672,26.92,152.2,152.11,26.92]
[1746109170479,6.5699,152.18,152.15,6.5705]
[1746109170976,26.92,152.2,152.11,26.92]
[1746109171279,6.5693,152.19,152.16,6.5703]
[1746109172375,6.5693,152.19,152.16,6.5699]
[1746109173279,6.5693,152.19,152.17,6.5699]
[1746109173479,33.4888,152.2,152.17,6.5699]
[1746109173873,6.5691,152.19,152.17,6.5699]
[1746109174171,6.5691,152.19,152.16,6.5702]
[1746109174374,6.5691,152.19,152.11,26.92]
[1746109175081,33.4888,152.2,152.11,26.92]
[1746109175281,26.92,152.2,152.11,26.92]
[1746109175674,26.92,152.2,152.18,6.5692]
[1746109176174,521.6333701,152.28,152.12,32.4526727]
[1746109176379,6.5675,152.23,152.2,6.5683]
[1746109176580,33.4275,152.23,152.2,6.5683]
[1746109177082,26.86,152.23,152.13,13.1428]
[1746109177771,26.86,152.23,152.11,26.92]
[1746109177975,46.1688727,152.23,152.11,26.92]
[1746109178176,6.5693,152.19,152.11,26.92]
[1746109178377,33.4293,152.19,152.11,26.92]
[1746109178781,26.86,152.19,152.11,26.92]
[1746109179586,26.86,152.19,152.09,13.1465]
[1746109180580,6.5698,152.18,152.15,6.5707]
[1746109181088,6.57,152.17,152.14,6.5709]
[1746109181290,26.86,152.19,152.14,6.5709]
[1746109181583,26.86,152.19,152.08,26.86]
[1746109181788,6.5697,152.18,152.08,26.86]
[1746109182390,6.5697,152.18,152.15,6.5705]
[1746109182582,33.4292,152.19,152.08,26.86]
[1746109182988,26.86,152.19,152.15,6.5705]
[1746109183384,6.5696,152.18,152.15,6.5705]
[1746109183989,6.5696,152.18,152.16,6.5703]
[1746109184189,33.4293,152.19,152.16,6.5703]
[1746109184390,26.86,152.19,152.16,6.5703]
[1746109185087,6.5697,152.18,152.08,26.86]
[1746109185292,26.86,152.19,152.06,20.45278171]
[1746109185493,26.86,152.19,152.06,1.14390901]
[1746109185982,26.86,152.19,152.05,40.0101]
[1746109186186,547.16,152.19,152.05,40.0101]
[1746109186389,6.5715,152.14,152.11,6.5724]
[1746109186591,26.86,152.13,152.11,6.5724]
[1746109186791,26.86,152.13,152.05,40.0101]
[1746109187088,33.4319,152.13,152.1,6.5726]
[1746109187284,33.4319,152.13,152.05,40.0101]
[1746109187590,33.4319,152.13,152.11,6.5724]
[1746109187888,33.4319,152.13,152.05,40.0101]
[1746109188189,26.86,152.13,152.05,26.86]
[1746109188893,26.86,152.13,152.11,6.5722]
[1746109189593,26.86,152.13,152.12,6.5721]
[1746109191388,26.86,152.13,152.11,6.5723]
[1746109191687,26.86,152.13,152.05,26.86]
[1746109191885,26.86,152.13,152.11,6.5725]
[1746109192093,26.86,152.13,152.05,26.86]
[1746109193090,26.86,152.13,152.12,6.5721]
[1746109194593,26.86,152.13,152.11,6.5723]
[1746109194793,26.86,152.13,152.05,26.86]
[1746109195196,6.5722,152.12,152.09,6.5731]
[1746109195493,26.86,152.13,152.05,26.86]
[1746109195999,26.86,152.13,152.02,26.88]
[1746109196482,6.5727,152.11,152.08,6.5735]
[1746109196682,6.5727,152.11,152.02,26.88]
[1746109197088,6.5727,152.11,152.08,6.5736]
[1746109197290,6.5723,152.12,152.08,6.5736]
[1746109197594,6.5723,152.12,152.02,26.88]
[1746109198092,6.5725,152.11,152.02,26.88]
[1746109198296,26.86,152.13,152.02,26.88]
[1746109198796,6.5724,152.12,152.02,26.88]
[1746109199384,6.5721,152.12,152.09,6.5731]
[1746109199589,6.5721,152.12,152.02,26.88]
[1746109199996,6.5721,152.12,152.07,6.574]
[1746109200295,26.86,152.13,152.02,26.88]
[1746109200503,26.86,152.13,152.07,6.5739]
[1746109200796,6.5726,152.11,152.02,26.88]
[1746109201001,26.86,152.13,152.06,6.5743]
[1746109201301,6.5732,152.1,152.02,26.88]
[1746109201597,520.3,152.19,152.02,26.88]
[1746109201598,539.6088727,152.19,152.02,26.88]
[1746109201798,19.3088727,152.16,152.02,26.88]
[1746109201997,19.3088727,152.16,152.0,20.45323311]
[1746109202193,19.3088727,152.16,152.09,6.5731]
[1746109202697,19.3088727,152.16,152.1,6.5727]
[1746109202891,19.3088727,152.16,152.0,20.45323311]
[1746109203093,19.3088727,152.16,152.03,26.8]
[1746109203299,19.3088727,152.16,152.1,6.5726]
[1746109203599,19.3088727,152.16,152.03,26.8]
[1746109203796,19.3088727,152.16,152.1,6.5726]
[1746109204000,6.5719,152.13,152.1,6.5726]
[1746109204196,26.8,152.12,152.1,6.5726]
[1746109204502,19.3088727,152.16,152.03,26.8]
[1746109204689,26.8,152.15,152.03,46.1088727]
[1746109204893,26.8,152.14,152.03,46.1088727]
[1746109205202,26.8,152.15,152.05,13.15]
[1746109205499,26.8,152.16,152.06,19.3088727]
[1746109205701,26.8,152.2,152.07,39.9481]
[1746109205895,26.8,152.2,152.07,26.8]
[1746109206095,26.8,152.2,152.09,19.3088727]
[1746109206706,26.8,152.2,152.19,6.569]
[1746109207199,26.8,152.2,152.18,6.5693]
[1746109207501,26.8,152.2,152.12,26.8]
[1746109207899,26.8,152.2,152.18,6.5691]
[1746109208206,26.8,152.2,152.12,26.8]
[1746109208503,26.8,152.23,152.12,59.2527727]
[1746109208699,26.8,152.25,152.12,46.1088727]
[1746109208909,26.8,152.26,152.13,13.1432]
[1746109209099,6.5667,152.25,152.21,6.5678]
[1746109209298,26.8,152.26,152.17,26.8]
[1746109209604,6.5665,152.25,152.17,26.8]
[1746109209803,26.8,152.26,152.17,26.8]
[1746109210002,6.5671,152.24,152.2,6.5684]
[1746109210198,26.8,152.26,152.17,26.8]
[1746109210506,26.8,152.26,152.14,26.8]
[1746109210703,6.5676,152.23,152.19,6.5688]
[1746109210903,26.8,152.26,152.14,26.8]
[1746109211411,6.5671,152.24,152.2,6.5684]
[1746109211611,26.8,152.26,152.14,26.8]
[1746109211908,19.3088727,152.25,152.14,26.8]
[1746109212111,6.5679,152.22,152.18,6.5692]
[1746109212303,26.8,152.22,152.08,13.1471]
[1746109212504,6.569,152.2,152.09,26.8]
[1746109214210,6.569,152.2,152.17,6.5699]
[1746109214508,6.5684,152.21,152.17,6.5699]
[1746109214914,6.5684,152.21,152.18,6.5695]
[1746109215105,26.8,152.22,152.13,26.8]
[1746109215510,26.8,152.22,152.19,6.5687]
[1746109215910,26.8,152.22,152.13,26.8]
[1746109216809,6.5683,152.21,152.18,6.5692]
[1746109217016,26.8,152.22,152.18,6.5692]
[1746109217312,33.368,152.22,152.19,6.569]
[1746109218212,33.368,152.22,152.2,6.5685]
[1746109218213,26.8,152.22,152.2,6.5685]
[1746109219014,33.3678,152.22,152.2,6.5685]
[1746109219217,33.3678,152.22,152.19,6.5688]
[1746109219417,26.8,152.22,152.13,26.8]
[1746109219618,6.5693,152.19,152.1,39.9458]
[1746109219916,46.1088727,152.22,152.16,6.57]
[1746109220519,46.1088727,152.22,152.15,6.5707]
[1746109220712,6.5694,152.19,152.1,26.8]
[1746109221018,26.8,152.18,152.16,6.5701]
[1746109221319,33.3695,152.18,152.16,6.5701]
[1746109221714,26.8,152.18,152.09,26.8]
[1746109222017,6.5702,152.17,152.09,26.8]
[1746109222210,26.8,152.18,152.09,26.8]
[1746109222614,26.8,152.18,152.17,6.5699]
[1746109223613,52.4816,152.4,152.13,26.8]
[1746109223811,19.3088727,152.27,152.14,26.8]
[1746109224012,26.8,152.26,152.14,26.8]
[1746109224718,6.5667,152.25,152.22,6.5675]
[1746109225418,26.8,152.26,152.21,6.5681]
[1746109225821,6.5669,152.25,152.21,6.5681]
[1746109226416,6.567,152.24,152.21,6.5681]
[1746109227123,6.5667,152.25,152.22,6.5677]
[1746109227320,26.8,152.26,152.14,26.8]
[1746109227722,26.8,152.26,152.24,6.5666]
[1746109227921,26.8,152.26,152.14,26.8]
[1746109228121,26.8,152.26,152.22,6.5676]
[1746109228320,26.8,152.26,152.16,13.1407]
[1746109228922,6.5666,152.25,152.16,13.1407]
[1746109230026,6.5666,152.25,152.22,6.5675]
[1746109230419,6.5666,152.25,152.16,13.1407]
[1746109230723,26.8,152.26,152.23,6.567]
[1746109231125,26.8,152.26,152.25,6.5665]
[1746109231319,26.8,152.26,152.18,26.7]
[1746109231826,46.1088727,152.26,152.18,26.7]
[1746109232018,46.1088727,152.26,152.15,26.7]
[1746109232322,6.5671,152.24,152.15,26.7]
[1746109232525,46.1088727,152.26,152.15,26.7]
[1746109233025,52.6751727,152.26,152.22,6.5674]
[1746109233525,52.6751727,152.26,152.23,6.5672]
[1746109233722,6.5665,152.25,152.15,26.7]
[1746109234220,52.6751727,152.26,152.15,26.7]
[1746109234427,46.1088727,152.26,152.15,26.7]
[1746109234823,26.8,152.26,152.15,26.7]
[1746109235728,26.8,152.26,152.25,6.5665]
[1746109239230,19.3088727,152.29,152.15,26.7]
[1746109239424,26.7,152.28,152.15,26.7]
[1746109239820,26.7,152.28,152.19,13.1381]
[1746109240021,26.7,152.28,152.19,39.8381]
[1746109240327,26.7,152.28,152.26,6.5658]
[1746109240728,26.7,152.28,152.19,39.8381]
[1746109241030,26.7,152.28,152.26,6.5658]
[1746109241329,33.2654,152.28,152.26,6.5658]
[1746109241523,26.7,152.28,152.19,39.8381]
[1746109242135,33.2654,152.28,152.26,6.5658]
[1746109242428,26.7,152.28,152.19,39.8381]
[1746109242728,26.7,152.28,152.27,6.5656]
[1746109243629,33.2653,152.28,152.26,6.5658]
[1746109243829,26.7,152.28,152.19,39.8381]
[1746109244530,26.7,152.28,152.19,26.7]
[1746109244731,19.3088727,152.26,152.16,26.7]
[1746109245031,6.5666,152.25,152.22,6.5674]
[1746109245333,26.7,152.24,152.17,13.1397]
[1746109245720,26.7,152.24,152.23,6.5673]
[1746109246330,26.7,152.24,152.17,13.1397]
[1746109246634,26.7,152.24,152.16,26.7]
[1746109246830,26.7,152.24,152.13,13.1429]
[1746109247227,6.5676,152.23,152.2,6.5683]
[1746109248530,26.7,152.24,152.2,6.5683]
[1746109248732,26.7,152.24,152.14,13.1424]
[1746109249240,33.2671,152.24,152.22,6.5677]
[1746109250035,33.2671,152.24,152.21,6.568]
[1746109250238,26.7,152.24,152.21,6.568]
[1746109250638,26.7,152.24,152.22,6.5677]
[1746109250836,33.2671,152.24,152.14,13.1424]
[1746109251238,33.2671,152.24,152.21,6.5679]
[1746109251533,26.7,152.24,152.16,26.7]
[1746109252134,6.568,152.22,152.16,26.7]
[1746109252335,26.7,152.24,152.2,6.5686]
[1746109252538,6.5675,152.23,152.2,6.5686]
[1746109253242,26.7,152.24,152.13,26.7]
[1746109253941,6.568,152.22,152.19,6.5687]
[1746109254244,26.7,152.24,152.12,13.1439]
[1746109254245,19.3088727,152.23,152.12,13.1439]
[1746109254443,6.5687,152.2,152.17,6.5695]
[1746109254743,33.2687,152.2,152.17,6.5695]
[1746109254939,6.5697,152.18,152.15,6.5706]
[1746109255139,46.0088727,152.2,152.09,26.7]
[1746109255443,6.5697,152.18,152.15,6.5705]
[1746109255841,46.0088727,152.2,152.09,26.7]
[1746109256042,6.5702,152.17,152.14,6.571]
[1746109256541,6.5696,152.18,152.15,6.5707]
[1746109257044,6.57,152.17,152.14,6.571]
[1746109257640,6.57,152.17,152.15,6.5707]
[1746109257846,6.5696,152.18,152.15,6.5707]
[1746109258243,46.0088727,152.2,152.09,26.7]
[1746109258444,26.7,152.2,152.09,26.7]
[1746109258848,26.7,152.2,152.1,13.1458]
[1746109260348,33.2687,152.2,152.1,13.1458]
[1746109260649,26.7,152.2,152.1,13.1458]
[1746109261449,33.269,152.2,152.17,6.5696]
[1746109261847,26.7,152.2,152.17,6.5696]
[1746109262845,33.269,152.2,152.17,6.5696]
[1746109263253,33.269,152.2,152.1,13.1458]
[1746109263754,33.269,152.2,152.17,6.5695]
[1746109264050,33.269,152.2,152.1,13.1458]
[1746109264855,6.5693,152.19,152.1,13.1458]
[1746109265954,33.2688,152.2,152.17,6.5696]
[1746109266154,33.2688,152.2,152.1,13.1458]
[1746109266349,26.7,152.2,152.11,13.1447]
[1746109266547,26.7,152.2,152.09,26.7]
[1746109266548,26.62,152.23,152.09,46.0088727]
[1746109266848,26.62,152.23,152.13,13.1425]
[1746109267050,26.62,152.23,152.14,26.62]
[1746109268654,26.62,152.23,152.21,6.5678]
[1746109269354,26.62,152.23,152.14,26.62]
[1746109269557,33.1873,152.23,152.14,26.62]
[1746109270257,33.1873,152.23,152.21,6.568]
[1746109270558,26.62,152.23,152.21,6.568]
[1746109270853,26.62,152.23,152.22,6.5677]
[1746109271359,26.6,152.27,152.18,26.6]
[1746109271753,33.1658,152.27,152.18,26.6]
[1746109271956,33.1658,152.27,152.24,6.5665]
[1746109272259,33.1658,152.27,152.18,26.6]
[1746109272559,33.1658,152.27,152.25,6.5662]
[1746109272754,26.6,152.27,152.18,26.6]
[1746109273161,26.6,152.27,152.25,6.5661]
[1746109273661,546.94,152.3,152.26,6.5656]
[1746109273857,546.94,152.3,152.18,26.6]
[1746109274157,553.5045,152.3,152.27,6.5653]
[1746109274563,1.31311141,152.31,152.23,26.6]
[1746109274861,1.31311141,152.31,152.3,6.5643]
[1746109275061,26.6,152.33,152.23,26.6]
[1746109276260,26.6,152.33,152.31,6.5636]
[1746109276653,26.6,152.33,152.3,6.5641]
[1746109276956,33.1633,152.33,152.3,6.5641]
[1746109277261,26.6,152.33,152.23,26.6]
[1746109277662,6.5637,152.32,152.23,26.6]
[1746109277861,6.5637,152.32,152.29,6.5643]
[1746109278859,33.1632,152.33,152.29,6.5643]
[1746109279361,26.6,152.33,152.29,6.5643]
[1746109279557,6.5635,152.32,152.29,6.5643]
[1746109279759,26.6,152.33,152.23,26.6]
[1746109280065,19.3088727,152.32,152.23,26.6]
[1746109280264,6.565,152.29,152.26,6.5657]
[1746109280967,6.5652,152.28,152.25,6.5663]
[1746109281458,6.5659,152.27,152.2,26.6]
[1746109281663,45.9088727,152.29,152.2,26.6]
[1746109281865,45.9088727,152.29,152.17,27.74278208]
[1746109282062,6.5658,152.27,152.24,6.5669]
[1746109282766,6.5661,152.26,152.23,6.5672]
[1746109282964,45.9088727,152.29,152.17,27.74278208]
[1746109283157,45.9088727,152.29,152.17,26.6]
[1746109284064,6.5657,152.27,152.24,6.5666]
[1746109285866,6.566,152.26,152.23,6.5671]
[1746109286066,45.9088727,152.29,152.17,26.6]
[1746109286765,6.5661,152.26,152.17,26.6]
[1746109287061,45.9088727,152.29,152.17,26.6]
[1746109287464,26.6,152.29,152.17,26.6]
[1746109287863,6.5652,152.28,152.17,26.6]
[1746109288264,33.1649,152.29,152.17,26.6]
[1746109288564,26.6,152.29,152.17,26.6]
[1746109288764,6.566,152.26,152.17,26.6]
[1746109289465,6.566,152.26,152.23,6.5671]
[1746109289765,45.9088727,152.29,152.17,26.6]
[1746109289969,45.9088727,152.29,152.21,6.5679]
[1746109290263,6.5667,152.25,152.16,26.6]
[1746109290463,33.1667,152.25,152.22,6.5675]
[1746109292567,6.567,152.24,152.21,6.568]
[1746109293168,33.1667,152.25,152.22,6.5676]
[1746109293367,26.6,152.25,152.16,26.6]
[1746109293761,26.6,152.25,152.24,6.5669]
[1746109294561,26.6,152.25,152.23,6.5672]
[1746109295263,26.6,152.25,152.24,6.5669]